bitfinex/quotes_SOLUSD_20250204
["timestamp","ask_amount","ask_price","bid_price","bid_amount"]
[1738680376929,134.8,214.84,214.72,0.0001]
[1738680376930,0.12549,214.77,214.72,0.0001]
[1738680377121,0.52234358,214.78,214.73,37.81113247]
[1738680377322,134.8,214.79,214.77,37.81113247]
[1738680377544,134.8,214.83,214.77,37.81113247]
[1738680377708,139.4537,214.88,214.79,37.81113247]
[1738680377908,37.81113247,214.85,214.77,37.81113247]
[1738680378133,0.25098,214.8,214.73,37.81113247]
[1738680378332,0.25098,214.8,214.72,0.0001]
[1738680378333,0.25098,214.75,214.72,0.0001]
[1738680378517,173.13347605,214.74,214.72,0.0001]
[1738680378711,172.61113247,214.74,214.72,0.0001]
[1738680378920,134.8,214.75,214.72,0.0001]
[1738680379207,0.12549,214.73,214.72,0.0001]
[1738680379407,14.78831853,214.73,214.72,0.0001]
[1738680379604,0.25098,214.73,214.72,0.0001]
[1738680379838,0.12549,214.73,214.72,0.0001]
[1738680380615,0.64783358,214.73,214.72,0.0001]
[1738680380811,5.30483358,214.73,214.72,0.0001]
[1738680381033,18.84217211,214.73,214.72,0.0001]
[1738680381229,18.96766211,214.73,214.72,0.0001]
[1738680381416,18.84217211,214.73,214.72,0.0001]
[1738680381831,0.12549,214.73,214.72,0.0001]
[1738680382034,15.31066211,214.73,214.72,0.0001]
[1738680382525,14.18517211,214.73,214.72,0.0001]
[1738680382919,14.31066211,214.73,214.72,0.0001]
[1738680383123,16.31066211,214.73,214.72,0.0001]
[1738680383426,15.18517211,214.73,214.67,0.03]
[1738680383626,0.25098,214.69,214.67,0.03]
[1738680383839,0.64783358,214.68,214.67,0.03]
[1738680384045,52.12179458,214.68,214.67,0.0001]
[1738680384361,51.99630458,214.68,214.67,0.0001]
[1738680384653,51.99630458,214.68,214.6,0.063]
[1738680384654,38.33347605,214.68,214.6,0.063]
[1738680384821,0.25098,214.65,214.6,0.063]
[1738680385153,0.37647,214.61,214.6,0.063]
[1738680385352,0.77332358,214.61,214.6,0.063]
[1738680385963,0.25098,214.57,214.54,0.063]
[1738680386135,37.93662247,214.55,214.54,0.063]
[1738680386328,20.12549,214.55,214.54,0.063]
[1738680386523,37.81113247,214.57,214.54,0.063]
[1738680386524,0.52234358,214.57,214.54,0.063]
[1738680386861,0.52234358,214.65,214.56,37.81113247]
[1738680387058,0.52234358,214.65,214.59,37.81113247]
[1738680387427,134.8,214.71,214.63,37.81113247]
[1738680387644,0.12549,214.69,214.63,37.81113247]
[1738680387847,0.12549,214.67,214.61,37.81113247]
[1738680388149,134.8,214.7,214.63,37.81113247]
[1738680388450,37.81113247,214.75,214.65,37.81113247]
[1738680388752,83.9,214.81,214.61,37.81113247]
[1738680388753,134.8,214.8,214.73,37.81113247]
[1738680388934,190.1,214.85,214.78,37.81113247]
[1738680389260,0.25098,214.77,214.63,4.659]
[1738680389430,0.12549,214.73,214.65,37.81113247]
[1738680389756,0.12549,214.71,214.63,37.81113247]
[1738680389947,20.12549,214.66,214.59,37.81113247]
[1738680390158,13.53733853,214.69,214.54,0.063]
[1738680390159,37.93662247,214.64,214.55,37.81113247]
[1738680390358,114.8,214.65,214.57,37.81113247]
[1738680390563,13.53733853,214.69,214.55,37.81113247]
[1738680390564,136.43347605,214.64,214.55,37.81113247]
[1738680390766,37.81113247,214.62,214.54,0.063]
[1738680390957,0.12549,214.59,214.54,0.063]
[1738680391151,0.12549,214.57,214.54,0.063]
[1738680391375,0.12549,214.55,214.54,0.063]
[1738680391846,0.64783358,214.55,214.54,0.063]
[1738680392374,14.18517211,214.55,214.54,0.063]
[1738680392578,0.64783358,214.55,214.54,0.063]
[1738680392748,20.0,214.55,214.54,0.063]
[1738680392949,33.78831853,214.55,214.54,0.063]
[1738680393262,20.64783358,214.55,214.54,0.063]
[1738680393480,34.18517211,214.55,214.54,0.063]
[1738680393858,20.64783358,214.55,214.54,0.063]
[1738680394056,0.52234358,214.6,214.54,0.063]
[1738680394380,0.12549,214.58,214.54,0.063]
[1738680395173,37.81113247,214.61,214.54,0.063]
[1738680395174,18.32272853,214.6,214.54,0.063]
[1738680395347,51.473961,214.55,214.54,0.063]
[1738680395750,0.12549,214.55,214.54,0.063]
[1738680396162,0.12549,214.54,214.5,0.063]
[1738680396672,4.6596,214.61,214.53,37.81113247]
[1738680396872,37.81113247,214.62,214.53,37.81113247]
[1738680397177,94.546,214.67,214.55,42.47193247]
[1738680397178,118.1,214.61,214.55,42.47193247]
[1738680397479,0.12549,214.62,214.57,37.81113247]
[1738680397679,0.12549,214.62,214.55,42.47193247]
[1738680397978,0.12549,214.62,214.55,37.81113247]
[1738680398282,0.12549,214.59,214.53,37.81113247]
[1738680398651,0.12549,214.59,214.51,37.81113247]
[1738680398961,0.12549,214.59,214.5,0.063]
[1738680398962,0.12549,214.57,214.5,0.063]
[1738680399360,118.1,214.58,214.53,37.81113247]
[1738680399552,118.1,214.58,214.55,37.81113247]
[1738680399878,37.81113247,214.64,214.55,37.81113247]
[1738680399879,0.12549,214.62,214.55,37.81113247]
[1738680400366,20.0,214.6,214.53,37.81113247]
[1738680400570,37.81113247,214.56,214.5,0.063]
[1738680400763,118.1,214.6,214.53,37.81113247]
[1738680400966,37.81113247,214.57,214.5,0.063]
[1738680401175,4.6607,214.56,214.5,0.063]
[1738680401473,0.12549,214.51,214.5,0.063]
[1738680402059,42.47183247,214.56,214.5,0.063]
[1738680402684,20.0,214.53,214.5,0.063]
[1738680403163,0.12549,214.52,214.5,0.063]
[1738680403353,8.43119644,214.64,214.51,37.81113247]
[1738680403354,37.81113247,214.62,214.51,37.81113247]
[1738680403553,37.81113247,214.6,214.51,37.81113247]
[1738680403756,0.12549,214.59,214.51,37.81113247]
[1738680403985,57.81113247,214.6,214.51,37.81113247]
[1738680404390,0.12549,214.59,214.51,37.81113247]
[1738680404980,0.12549,214.59,214.5,0.063]
[1738680404981,4.658,214.69,214.58,0.12549]
[1738680405182,0.03,214.65,214.6,37.81113247]
[1738680405478,0.12549,214.6,214.51,37.81113247]
[1738680405953,0.12549,214.58,214.51,37.81113247]
[1738680406162,0.12549,214.58,214.53,37.81113247]
[1738680406370,118.1,214.64,214.57,37.81113247]
[1738680406562,0.03,214.65,214.62,37.81113247]
[1738680406768,0.03,214.65,214.64,38.18760247]
[1738680406970,42.46663247,214.8,214.65,1.37647]
[1738680407167,155.91113247,214.83,214.73,37.81113247]
[1738680407372,0.03,214.85,214.81,37.81113247]
[1738680408082,20.0,214.79,214.67,0.69828955]
[1738680408261,0.12549,214.78,214.7,37.81113247]
[1738680408660,33.53733853,214.74,214.66,37.81113247]
[1738680408866,189.448471,214.74,214.66,37.81113247]
[1738680409084,20.12549,214.69,214.62,37.81113247]
[1738680409265,20.0,214.65,214.6,37.81113247]
[1738680409679,20.0,214.63,214.56,37.81113247]
[1738680409892,118.1,214.65,214.59,12.16838904]
[1738680410071,155.91113247,214.64,214.59,12.16838904]
[1738680410389,51.473961,214.6,214.59,12.16838904]
[1738680410589,51.724941,214.6,214.59,8.904e-05]
[1738680410965,51.724941,214.6,214.54,21.29468082]
[1738680410966,0.12549,214.58,214.53,6.92356937]
[1738680411178,0.12549,214.54,214.53,6.92356937]
[1738680411567,0.25098,214.54,214.53,6.92356937]
[1738680411876,13.66282853,214.54,214.53,6.92356937]
[1738680412868,13.53733853,214.54,214.53,6.92356937]
[1738680413262,13.78831853,214.54,214.53,6.92356937]
[1738680413462,20.25098,214.51,214.5,0.063]
[1738680413803,0.12549,214.51,214.5,0.063]
[1738680414165,37.81113247,214.58,214.5,0.063]
[1738680414363,4.6606,214.57,214.5,0.063]
[1738680414567,20.0,214.55,214.5,0.063]
[1738680414882,37.81113247,214.54,214.5,0.063]
[1738680415193,18.19903853,214.51,214.5,0.063]
[1738680415872,18.32452853,214.51,214.5,0.063]
[1738680416174,37.81113247,214.56,214.5,0.063]
[1738680416699,95.5491,214.61,214.5,0.063]
[1738680416700,13.53733853,214.52,214.5,0.063]
[1738680416864,37.81113247,214.56,214.5,0.063]
[1738680417069,37.81113247,214.58,214.5,37.87413247]
[1738680417265,20.0,214.55,214.5,37.87413247]
[1738680417470,37.81113247,214.6,214.52,37.81113247]
[1738680417685,37.81113247,214.64,214.56,37.81113247]
[1738680418178,20.0,214.61,214.56,37.81113247]
[1738680418373,7.22755869,214.62,214.57,0.25098]
[1738680418588,7.22755869,214.62,214.6,37.81113247]
[1738680419079,7.22755869,214.62,214.61,0.25098]
[1738680419280,7.22755869,214.62,214.61,42.84720247]
[1738680419483,7.22755869,214.62,214.61,0.25098]
[1738680419683,7.22755869,214.62,214.61,1.25098]
[1738680419996,0.03,214.65,214.6,37.81113247]
[1738680420213,0.03,214.65,214.62,37.81113247]
[1738680420368,118.1,214.8,214.7,0.12549]
[1738680420687,118.1,214.81,214.74,37.81113247]
[1738680420999,122.7553,214.81,214.74,37.81113247]
[1738680421170,118.1,214.81,214.75,0.12549]
[1738680421580,125.32755869,214.82,214.77,0.12549]
[1738680421790,125.32755869,214.82,214.78,37.81113247]
[1738680421977,0.12549,214.81,214.76,37.81113247]
[1738680422187,0.12549,214.81,214.74,37.81113247]
[1738680422394,118.1,214.8,214.72,37.81113247]
[1738680422792,118.1,214.84,214.77,0.25098]
[1738680423103,37.84113247,214.85,214.77,0.25098]
[1738680423104,0.03,214.85,214.83,0.25098]
[1738680423269,0.03,214.85,214.84,37.81113247]
[1738680423465,0.03,214.85,214.8,37.81113247]
[1738680423873,0.03,214.85,214.78,37.81113247]
[1738680424068,118.13,214.85,214.8,37.81113247]
[1738680424268,118.13,214.85,214.84,38.06211247]
[1738680424578,0.03,214.85,214.8,37.81113247]
[1738680424791,0.12549,214.84,214.78,37.81113247]
[1738680424979,118.1,214.84,214.79,0.12549]
[1738680425203,42.46593247,214.83,214.74,37.81113247]
[1738680425515,62.46593247,214.83,214.76,37.81113247]
[1738680425730,0.03,214.85,214.8,37.81113247]
[1738680426021,0.12549,214.84,214.78,37.81113247]
[1738680426201,20.12549,214.84,214.78,37.81113247]
[1738680426406,37.81113247,214.83,214.74,37.81113247]
[1738680426720,57.93662247,214.79,214.7,37.81113247]
[1738680426904,0.12549,214.77,214.7,37.81113247]
[1738680427219,118.1,214.78,214.76,37.81113247]
[1738680427407,13.41184853,214.84,214.77,0.25098]
[1738680427408,118.1,214.84,214.77,0.25098]
[1738680427591,160.59563247,214.85,214.77,37.81113247]
[1738680427797,0.12549,214.84,214.77,37.81113247]
[1738680428012,37.81113247,214.79,214.71,37.81113247]
[1738680428192,0.12549,214.76,214.67,37.81113247]
[1738680428412,0.12549,214.74,214.65,37.81113247]
[1738680428712,118.1,214.73,214.67,37.81113247]
[1738680428917,118.1,214.73,214.65,37.81113247]
[1738680428918,155.91113247,214.73,214.65,37.81113247]
[1738680429129,37.93662247,214.69,214.61,37.81113247]
[1738680429294,37.93662247,214.69,214.58,3.2185]
[1738680429295,37.93662247,214.67,214.65,0.063]
[1738680429490,118.22549,214.66,214.65,0.063]
[1738680429915,118.1,214.66,214.65,0.063]
[1738680430122,131.63733853,214.66,214.65,0.063]
[1738680430322,118.22549,214.66,214.65,0.063]
[1738680430499,131.63733853,214.66,214.65,0.063]
[1738680430701,20.0,214.63,214.55,37.81113247]
[1738680430920,118.1,214.62,214.57,37.81113247]
[1738680431226,118.1,214.71,214.62,0.25098]
[1738680431418,118.1,214.72,214.66,37.81113247]
[1738680431620,118.1,214.72,214.62,37.93662247]
[1738680431621,51.348471,214.71,214.62,37.93662247]
[1738680431796,118.1,214.72,214.66,37.81113247]
[1738680432000,118.1,214.72,214.68,37.81113247]
[1738680432233,37.93662247,214.73,214.64,37.81113247]
[1738680432723,0.12549,214.7,214.62,37.81113247]
[1738680432924,0.12549,214.64,214.58,37.81113247]
[1738680433104,13.53733853,214.62,214.54,37.81113247]
[1738680433298,160.57033247,214.63,214.54,37.81113247]
[1738680433517,160.57033247,214.63,214.52,37.81113247]
[1738680433518,20.0,214.58,214.52,37.81113247]
[1738680433715,13.41184853,214.56,214.5,0.063]
[1738680434020,37.93662247,214.51,214.5,0.063]
[1738680434321,13.53733853,214.51,214.5,0.063]
[1738680434495,51.348471,214.51,214.5,0.063]
[1738680434695,13.53733853,214.51,214.5,0.0001]
[1738680434924,51.348471,214.51,214.5,0.0001]
[1738680435108,51.473961,214.51,214.5,0.0001]
[1738680435298,56.386641,214.51,214.5,0.0001]
[1738680435502,56.386641,214.51,214.36,37.81113247]
[1738680435503,0.12549,214.46,214.36,37.81113247]
[1738680435822,0.12549,214.46,214.3,7.9451]
[1738680435823,0.12549,214.34,214.26,37.84113247]
[1738680436002,0.12549,214.29,214.26,0.03]
[1738680436204,20.0,214.27,214.26,0.03]
[1738680436409,13.53733853,214.24,214.22,21.48735844]
[1738680436624,51.348471,214.24,214.15,37.81113247]
[1738680436814,0.12549,214.24,214.2,37.81113247]
[1738680437010,2.18872513,214.4,214.14,4.79529]
[1738680437011,37.81113247,214.32,214.22,37.81113247]
[1738680437211,20.0,214.29,214.22,37.81113247]
[1738680437413,13.53733853,214.28,214.2,37.81113247]
[1738680437619,0.12549,214.28,214.22,37.81113247]
[1738680437931,0.12549,214.28,214.17,38.81113247]
[1738680437932,37.81113247,214.39,214.26,37.81113247]
[1738680438120,4.6639,214.42,214.33,37.81113247]
[1738680438426,1.0,214.5,214.28,37.81113247]
[1738680438427,37.81113247,214.47,214.38,37.81113247]
[1738680438630,118.1,214.46,214.4,37.81113247]
[1738680438928,13.41184853,214.4,214.36,37.81113247]
[1738680439118,118.1,214.39,214.36,37.81113247]
[1738680439317,118.1,214.39,214.28,37.81113247]
[1738680439318,118.1,214.39,214.38,37.81113247]
[1738680440316,0.12549,214.38,214.36,37.81113247]
[1738680440548,0.12549,214.36,214.31,37.81113247]
[1738680440713,13.53733853,214.34,214.23,4.6677]
[1738680440912,0.12549,214.32,214.29,37.81113247]
[1738680441112,118.22549,214.32,214.27,37.81113247]
[1738680441314,20.12549,214.3,214.25,37.81113247]
[1738680441528,0.12549,214.28,214.26,37.81113247]
[1738680441923,13.53733853,214.28,214.24,37.81113247]
[1738680442246,0.12549,214.27,214.22,37.87413247]
[1738680442415,13.53733853,214.25,214.22,0.063]
[1738680442846,118.1,214.26,214.24,37.81113247]
[1738680443018,52.74385564,214.4,214.24,37.81113247]
[1738680443019,118.1,214.33,214.25,0.12549]
[1738680443222,118.1,214.36,214.3,37.81113247]
[1738680443553,0.12549,214.29,214.22,37.87413247]
[1738680443860,7.19120442,214.34,214.25,0.25098]
[1738680444419,13.53733853,214.33,214.22,24.7309]
[1738680444639,13.53733853,214.33,214.22,5.7309]
[1738680444921,0.12549,214.33,214.29,37.81113247]
[1738680445310,13.66282853,214.37,214.31,37.81113247]
[1738680445509,118.1,214.36,214.29,37.81113247]
[1738680445739,0.12549,214.32,214.29,37.81113247]
[1738680446017,0.12549,214.3,214.27,37.81113247]
[1738680446352,118.1,214.3,214.29,5.42610532]
[1738680446524,118.1,214.3,214.22,0.063]
[1738680446525,131.63733853,214.29,214.25,37.81113247]
[1738680446710,20.0,214.26,214.23,37.81113247]
[1738680446916,13.41184853,214.24,214.22,0.063]
[1738680447145,132.76282853,214.23,214.22,0.063]
[1738680447344,0.12549,214.18,214.02,11.6809]
[1738680447557,0.12549,214.11,214.0,4.7357]
[1738680447759,0.12549,214.11,214.0,0.063]
[1738680447760,13.66282853,214.08,214.0,0.063]
[1738680447935,0.12549,214.08,214.0,0.063]
[1738680448148,0.12549,214.08,214.05,37.81113247]
[1738680448347,13.53733853,214.08,214.05,37.81113247]
[1738680448654,13.53733853,214.08,214.03,37.81113247]
[1738680448853,0.37647,214.08,214.03,37.81113247]
[1738680449057,33.78831853,214.08,214.01,37.81113247]
[1738680449261,33.53733853,214.08,214.01,37.81113247]
[1738680449557,33.53733853,214.08,214.03,37.81113247]
[1738680449863,33.66282853,214.08,214.01,37.81113247]
[1738680450166,33.66282853,214.08,214.03,37.81113247]
[1738680450167,33.53733853,214.08,214.03,37.81113247]
[1738680450464,71.348471,214.08,214.0,0.063]
[1738680450636,71.724941,214.08,214.0,0.063]
[1738680451056,33.53733853,214.08,214.05,37.81113247]
[1738680451390,57.81113247,214.08,213.99,37.81113247]
[1738680451674,20.0,214.07,214.03,37.81113247]
[1738680451844,45.00233689,214.1,214.05,37.81113247]
[1738680451845,21.57361326,214.1,214.05,37.81113247]
[1738680452054,14.38240884,214.1,214.07,37.81113247]
[1738680452240,14.38240884,214.1,214.05,37.81113247]
[1738680452752,14.38240884,214.1,214.07,37.81113247]
[1738680453139,37.81113247,214.1,214.03,37.81113247]
[1738680453340,0.12549,214.06,213.99,37.81113247]
[1738680453534,0.12549,214.04,213.99,37.81113247]
[1738680453965,118.1,214.06,214.03,37.81113247]
[1738680454174,37.81113247,214.14,214.05,37.81113247]
[1738680454361,37.81113247,214.14,214.0,0.12549]
[1738680454362,37.81113247,214.14,214.07,37.81113247]
[1738680454560,37.81113247,214.1,214.03,37.81113247]
[1738680454862,20.0,214.09,214.03,37.81113247]
[1738680455283,13.53733853,214.08,214.01,37.81113247]
[1738680455576,0.12549,214.04,213.99,37.81113247]
[1738680456077,20.0,213.99,213.95,37.81113247]
[1738680456261,118.22549,213.98,213.94,0.03]
[1738680456452,33.41184853,213.95,213.94,0.03]
[1738680456654,118.1,213.98,213.94,0.03]
[1738680456857,118.1,214.05,213.97,37.81113247]
[1738680457061,4.6712,214.08,213.99,37.81113247]
[1738680457062,42.48233247,214.08,213.99,37.81113247]
[1738680457488,118.1,214.13,214.05,37.81113247]
[1738680457660,160.58093247,214.14,214.05,37.81113247]
[1738680457984,42.48073247,214.16,214.07,37.81113247]
[1738680458157,0.12549,214.13,214.05,37.81113247]
[1738680458354,118.22549,214.13,214.05,37.81113247]
[1738680458580,118.22549,214.13,214.07,37.81113247]
[1738680458776,7.11962902,214.16,214.11,37.81113247]
[1738680459084,7.11962902,214.16,214.13,37.81113247]
[1738680459656,7.11962902,214.16,214.15,38.18760247]
[1738680459856,2.902e-05,214.16,214.15,77.99873494]
[1738680460157,2.902e-05,214.16,214.15,37.81113247]
[1738680460368,2.902e-05,214.16,214.13,37.81113247]
[1738680460966,2.902e-05,214.16,214.11,37.81113247]
[1738680461166,2.902e-05,214.16,214.13,37.81113247]
[1738680461472,2.902e-05,214.16,214.15,37.81113247]
[1738680461653,2.902e-05,214.16,214.11,37.81113247]
[1738680461856,2.902e-05,214.16,214.02,12.38115856]
[1738680461857,33.53733853,214.14,214.07,37.81113247]
[1738680462076,0.12549,214.11,214.05,37.81113247]
[1738680462655,0.12549,214.09,214.03,37.81113247]
[1738680462856,37.93662247,214.07,213.99,37.81113247]
[1738680463064,0.12549,214.05,213.99,37.81113247]
[1738680463266,20.0,214.04,213.97,37.81113247]
[1738680463468,20.0,214.04,214.01,37.81113247]
[1738680463663,118.1,214.09,214.01,37.81113247]
[1738680463982,155.91113247,214.15,214.07,37.81113247]
[1738680464192,118.1,214.14,214.07,37.81113247]
[1738680464358,0.12549,214.08,214.01,37.81113247]
[1738680464560,131.63733853,214.08,213.99,37.81113247]
[1738680464771,37.81113247,214.07,213.99,37.81113247]
[1738680464971,57.81113247,214.09,214.01,37.81113247]
[1738680465176,20.0,214.08,214.01,37.81113247]
[1738680465370,20.0,214.05,213.99,37.81113247]
[1738680465684,0.12549,214.02,213.94,42.51513247]
[1738680465898,13.53733853,214.02,213.94,37.84113247]
[1738680466187,20.12549,213.95,213.94,0.03]
[1738680466359,33.53733853,213.95,213.94,0.03]
[1738680466863,71.473961,213.95,213.94,0.03]
[1738680467062,71.348471,213.95,213.94,0.03]
[1738680467584,76.022371,213.95,213.94,0.03]
[1738680467797,76.273351,213.95,213.94,0.03]
[1738680468098,76.398841,213.95,213.94,0.03]
[1738680468264,51.724941,213.93,213.92,0.03]
[1738680468596,51.348471,213.93,213.92,0.03]
[1738680468761,0.12549,213.93,213.92,0.03]
[1738680468960,42.48473247,213.97,213.92,0.03]
[1738680469177,71.222981,213.93,213.92,0.03]
[1738680469379,76.399341,213.93,213.92,0.0001]
[1738680470181,0.12549,213.93,213.92,0.0001]
[1738680470379,37.81113247,213.98,213.92,0.0001]
[1738680470613,42.48453247,213.98,213.92,0.0001]
[1738680470793,0.12549,213.94,213.92,0.0001]
[1738680470983,13.41184853,213.93,213.92,0.0001]
[1738680471177,13.91380853,213.93,213.92,0.0001]
[1738680471426,18.58820853,213.93,213.92,0.0001]
[1738680471715,20.58820853,213.93,213.92,0.0001]
[1738680472382,0.25098,213.86,213.76,37.81113247]
[1738680472616,0.25098,213.82,213.76,37.81113247]
[1738680472785,20.12549,213.78,213.72,0.03]
[1738680473415,18.08884853,213.82,213.74,37.81113247]
[1738680473619,37.81113247,213.83,213.76,37.81113247]
[1738680473945,20.0,213.82,213.76,37.81113247]
[1738680474092,20.0,213.82,213.72,4.7089]
[1738680474093,0.12549,213.78,213.72,37.84113247]
[1738680474409,37.81113247,213.78,213.7,21.61356425]
[1738680474585,0.12549,213.77,213.7,21.61356425]
[1738680474780,20.12549,213.74,213.68,37.81113247]
[1738680475001,0.12549,213.72,213.66,37.81113247]
[1738680475201,20.0,213.73,213.68,37.81113247]
[1738680475402,20.0,213.74,213.7,37.81113247]
[1738680475712,4.6777,213.78,213.71,37.81113247]
[1738680475901,20.0,213.76,213.71,37.81113247]
[1738680476097,51.222981,213.75,213.67,37.81113247]
[1738680476296,0.12549,213.71,213.65,37.81113247]
[1738680476504,20.0,213.72,213.67,37.81113247]
[1738680477001,51.222981,213.71,213.62,37.81113247]
[1738680477195,0.12549,213.7,213.62,37.81113247]
[1738680477397,0.12549,213.7,213.64,37.81113247]
[1738680477820,20.0,213.7,213.64,37.81113247]
[1738680478112,20.0,213.66,213.6,37.81113247]
[1738680478446,0.12549,213.65,213.58,37.81113247]
[1738680478610,0.12549,213.63,213.58,37.81113247]
[1738680478810,0.12549,213.63,213.54,4.6829]
[1738680478811,20.0,213.6,213.54,37.81113247]
[1738680479428,20.0,213.6,213.57,37.81113247]
[1738680479632,0.12549,213.59,213.55,37.81113247]
[1738680479932,20.0,213.6,213.55,37.81113247]
[1738680480133,122.7809,213.64,213.57,37.81113247]
[1738680480308,20.0,213.56,213.5,37.81113247]
[1738680480509,37.81113247,213.54,213.45,42.49583247]
[1738680480715,0.12549,213.5,213.45,37.81113247]
[1738680480936,20.0,213.47,213.42,0.03]
[1738680481242,37.93662247,213.46,213.42,0.03]
[1738680481419,33.66282853,213.43,213.42,0.03]
[1738680481739,38.22263853,213.43,213.42,0.03]
[1738680481937,38.59910853,213.43,213.42,0.03]
[1738680482116,0.12549,213.43,213.42,0.03]
[1738680482314,55.52,213.5,213.42,0.03]
[1738680482532,37.81113247,213.47,213.42,0.03]
[1738680482740,20.12549,213.43,213.42,0.03]
[1738680482940,71.473961,213.43,213.42,0.03]
[1738680483239,71.724941,213.43,213.42,0.03]
[1738680483437,20.0,213.39,213.29,29.81123247]
[1738680483639,0.12549,213.38,213.29,37.81113247]
[1738680483949,20.0,213.32,213.25,37.81113247]
[1738680484152,20.0,213.32,213.22,4.6899]
[1738680484153,20.0,213.32,213.27,37.81113247]
[1738680484639,20.0,213.32,213.22,4.6899]
[1738680484640,20.0,213.3,213.25,37.81113247]
[1738680485140,20.0,213.28,213.23,37.81113247]
[1738680485349,20.0,213.28,213.25,37.81113247]
[1738680485554,0.12549,213.27,213.23,37.81113247]
[1738680485853,20.0,213.22,213.15,37.81113247]
[1738680486060,20.0,213.18,213.13,37.81113247]
[1738680486347,13.53733853,213.24,213.17,37.81113247]
[1738680486557,0.12549,213.26,213.2,1.0]
[1738680486721,0.12549,213.26,213.25,37.81113247]
[1738680486929,37.81113247,213.28,213.21,37.81113247]
[1738680487124,37.81113247,213.32,213.23,37.81113247]
[1738680487351,20.0,213.29,213.18,37.93662247]
[1738680487632,20.0,213.29,213.23,37.81113247]
[1738680487942,20.0,213.29,213.18,37.93662247]
[1738680487943,0.12549,213.26,213.21,37.81113247]
[1738680488524,13.53733853,213.26,213.21,37.81113247]
[1738680488754,13.53733853,213.26,213.1,13.43457108]
[1738680488755,0.12549,213.25,213.17,37.81113247]
[1738680488922,51.348471,213.26,213.17,37.81113247]
[1738680489135,13.53733853,213.26,213.19,37.81113247]
[1738680489447,20.0,213.27,213.23,37.81113247]
[1738680489625,37.81113247,213.35,213.25,37.81113247]
[1738680489825,37.81113247,213.35,213.18,37.81113247]
[1738680489826,55.58,213.4,213.31,37.81113247]
[1738680490051,55.58,213.4,213.33,37.81113247]
[1738680490255,55.58,213.4,213.35,37.81113247]
[1738680490544,55.58,213.4,213.37,37.81113247]
[1738680490849,4.6832,213.53,213.4,0.12549]
[1738680491051,37.81113247,213.55,213.46,37.81113247]
[1738680491234,20.0,213.52,213.46,37.81113247]
[1738680491432,37.81113247,213.56,213.47,37.81113247]
[1738680491638,37.81113247,213.52,213.43,37.81113247]
[1738680491847,37.81113247,213.54,213.45,37.81113247]
[1738680492035,37.81113247,213.58,213.49,37.81113247]
[1738680492237,55.62,213.59,213.51,37.81113247]
[1738680492447,55.62,213.59,213.45,0.12549]
[1738680492448,37.81113247,213.57,213.49,37.81113247]
[1738680492651,55.62,213.59,213.47,37.81113247]
[1738680492849,55.62,213.59,213.51,37.81113247]
[1738680493059,55.62,213.59,213.53,37.81113247]
[1738680493268,55.62,213.59,213.57,37.81113247]
[1738680493734,0.063,213.65,213.58,4.682]
[1738680493938,0.063,213.65,213.59,37.81113247]
[1738680494252,0.063,213.65,213.64,37.81113247]
[1738680494768,0.063,213.65,213.6,37.81113247]
[1738680494934,0.063,213.65,213.56,37.81113247]
[1738680495437,0.063,213.65,213.63,37.81113247]
[1738680496145,0.063,213.65,213.64,2.37647]
[1738680496351,0.063,213.65,213.64,1.37647]
[1738680496650,55.6,213.8,213.68,0.12549]
[1738680496845,55.6,213.8,213.76,37.81113247]
[1738680497455,55.6,213.8,213.78,37.81113247]
[1738680497968,42.48623247,213.9,213.78,37.81113247]
[1738680498171,37.81113247,213.86,213.77,37.81113247]
[1738680498466,0.12549,213.83,213.77,37.81113247]
[1738680498666,37.81113247,213.88,213.79,37.81113247]
[1738680498868,0.063,213.95,213.87,37.81113247]
[1738680499237,0.18849,213.95,213.85,37.81113247]
[1738680499463,37.81113247,213.94,213.85,37.81113247]
[1738680499652,13.53733853,213.93,213.85,37.81113247]
[1738680499842,0.063,213.95,213.91,37.81113247]